Cogmind - Beta 13 @@@ ROGUE MODE // 2024.07.21 @ 13:49:18 Player: Annull999 Result: Destroyed by G-47 Trooper with Particle Gun Performance ------------- Evolutions (2) 1000 Regions Visited (4) 800 Robots Destroyed (16) 80 Value Destroyed (363) 363 Prototype IDs (0) 0 Alien Tech Used (0) 0 Bonus (0) 0 TOTAL SCORE: 2243 Bonus ------- None Cogmind --------- Core Integrity 0/550 Matter 243/300 Energy 100/100 System Corruption 0% Temperature Cool (9) Movement Core (450) Ox8 Location -8/Materials Parts ------- > --- POWER (1) -------- (None) > --- PROPULSION (2) --- (None) > --- UTILITY (5) ------ Small Storage Unit Large Storage Unit > --- WEAPON (3) ------- (None) > --- INVENTORY (15) --- Ion Engine Aluminum Leg Compact Wheel Compact Wheel Subdweller Monowheel Large Storage Unit Subdweller Machine Gun Mining Laser Peak State ------------ > --- POWER ------------ Ion Engine > --- PROPULSION ------- Aluminum Leg Aluminum Leg > --- UTILITY ---------- Small Storage Unit Subdweller Optics Reaction Control System > --- WEAPON ----------- Beam Cannon Subdweller Machine Gun Subdweller Machine Gun > --- INVENTORY -------- Ion Engine Compact Wheel Compact Wheel Compact Wheel Subdweller Monowheel Large Storage Unit Rocket Launcher Mining Laser [Rating: 15] Favorites ----------- Power Ion Engine Engine Ion Engine Propulsion Aluminum Leg Leg Aluminum Leg Wheel Compact Wheel Utility Small Storage Unit Device Heat Sink Storage Small Storage Unit Weapon Assault Rifle Energy Gun EM Pulse Gun Energy Cannon Beam Cannon Ballistic Gun Assault Rifle Launcher Rocket Launcher Special Weapon Mining Laser Build | -11 -10 -10 -10 -8 ------- Run | Yrd Mat Min Sub Mat Slots Evolved 4 | . . . . 4 Power . | . . . . . Propulsion . | . . . . . Utility 3 | . . . . 3 Weapon 1 | . . . . 1 Parts Attached 21 | . 3 5 8 5 Power 1 | . 1 . . . Engine 1 | . 1 . . . Core . | . . . . . Reactor . | . . . . . Propulsion 6 | . . 3 2 1 Treads . | . . . . . Leg 3 | . . 1 2 . Wheel 3 | . . 2 . 1 Hover . | . . . . . Flight . | . . . . . Utility 4 | . 1 . 1 2 Device 3 | . 1 . 1 1 Storage 1 | . . . . 1 Processor . | . . . . . Hackware . | . . . . . Protection . | . . . . . Artifact . | . . . . . Weapon 10 | . 1 2 5 2 Energy Gun 1 | . 1 . . . Energy Cannon 4 | . . 1 2 1 Ballistic Gun 3 | . . . 3 . Ballistic Cannon . | . . . . . Launcher 1 | . . . . 1 Special Weapon 1 | . . 1 . . Impact Weapon . | . . . . . Slashing Weapon . | . . . . . Piercing Weapon . | . . . . . Special Melee Weapon . | . . . . . Unidentified Prototypes . | . . . . . Parts Lost 9 | . . 1 1 7 Power 1 | . . . . 1 Propulsion 2 | . . . . 2 Utility 2 | . . . 1 1 Weapon 4 | . . 1 . 3 Highest Loss Streak 7 | . . 1 1 7 To Critical Strikes . | . . . . . Average Slot Usage (%) 91 | . 92 99 98 62 Engine 12 | . 14 14 14 7 Leg 22 | . 28 26 18 10 Wheel 3 | . . 1 9 2 Device 11 | . 6 14 12 9 Storage 13 | . 14 14 14 13 Energy Gun 2 | . 14 . . . Energy Cannon 4 | . . 8 1 6 Ballistic Gun 16 | . 14 14 23 11 Special Weapon 2 | . . 4 3 . Naked Turns . | . . . . . Heaviest Build 42 | 11 15 16 20 42 Greatest Support 32 | 20 20 32 32 20 Greatest Overweight (x) 2 | . . . . 2 Average Overweight (x) . | . . . . 1 Largest Inventory Capacity 15 | . 8 8 8 15 Average Capacity 8 | . 8 8 8 11 Most Carried 8 | . 8 8 8 8 Average Carried 7 | . 6 7 7 7 Final Capacity 15 | 8 8 8 8 15 Final Carried 8 | 6 8 8 8 8 Class Distribution -------------------- 70% | Mutant 20% | Scavenger-Mutant 5% | Scavenger-Tank 3% | Scavenger-Skirmisher Dominant Class ---------------- Mutant | -10/Materials Mutant | -10/Mines Scavenger-Mutant | -10/Subcaves Mutant | -8/Materials Resources | -11 -10 -10 -10 -8 ----------- Run | Yrd Mat Min Sub Mat Matter Collected 486 | 198 56 59 156 17 Remotely . | . . . . . Salvage Created 366 | . 113 88 156 9 Parts 29 | . 12 7 10 . Haulers Intercepted . | . . . . . Recyclers Shooed . | . . . . . Parts Field Recycled . | . . . . . Retrieved Matter . | . . . . . Parts Self-Destructed . | . . . . . Prevented . | . . . . . Kills | -11 -10 -10 -10 -8 ------- Run | Yrd Mat Min Sub Mat Combat Hostiles Destroyed 15 | . 5 6 4 . Guns 13 | . 5 4 4 . Cannons 1 | . . 1 . . Classes Destroyed 4 | . 2 . 1 1 Watcher 1 | . . . . 1 Swarmer 9 | . 3 6 . . Grunt 2 | . 2 . . . Subdweller 4 | . . . 4 . Best Kill Streak 3 | . 3 3 1 1 Combat Bots Only 3 | . 3 3 1 . Max Kills in Single Turn 2 | . 2 1 1 1 Gunslinging . | . . . . . Exploded . | . . . . . Melee . | . . . . . Uniques/NPCs Destroyed . | . . . . . Combat | -11 -10 -10 -10 -8 -------- Run | Yrd Mat Min Sub Mat Hostile Shots Fired 133 | . 13 26 21 73 Missed 36 | . 3 11 8 14 Damage Taken 1713 | . 106 111 287 1209 Core 625 | . . 14 52 559 Absorbed by Shields . | . . . . . Core Remaining (%) 86 | 100 . . 73 . Volleys Fired 47 | . 8 18 17 4 Largest 3 | . 2 2 2 3 Hottest 123 | . 60 100 90 123 Shots Fired 93 | . 16 31 34 12 Gun 63 | . 16 15 28 4 Cannon 22 | . . 12 6 4 Launcher 4 | . . . . 4 Special 4 | . . 4 . . Kinetic 54 | . 8 14 28 4 Thermal 27 | . 1 16 6 4 Explosive 4 | . . . . 4 Electromagnetic 8 | . 7 1 . . Robot Hit Streak 10 | . 3 4 10 . Robot Miss Streak 4 | . 3 4 1 . Penetration Max . | . . . . . Secondary Targets 1 | . 1 . . . Max Gunslinging Chain 1 | . 1 . . . Shots Hit Robots 48 | . 7 13 28 . Core Hits 23 | . 6 5 8 4 Critical Kills 1 | . . 1 . . Critical Parts Destroyed . | . . . . . Critical Strikes 2 | . . 1 1 . Meltdown 1 | . . 1 . . Destroy 1 | . . . 1 . Melee Attacks . | . . . . . Impact . | . . . . . Slashing . | . . . . . Piercing . | . . . . . Sneak Attacks . | . . . . . Combat Hostiles . | . . . . . Follow-up Attacks . | . . . . . Damage Inflicted 1269 | . 99 206 571 393 Guns 701 | . 99 98 482 22 Cannons 197 | . . 108 89 . Explosions 371 | . . . . 371 Melee . | . . . . . Ramming . | . . . . . Kinetic 663 | . 61 98 482 22 Thermal 197 | . . 108 89 . Explosive 371 | . . . . 371 Electromagnetic 38 | . 38 . . . Impact . | . . . . . Slashing . | . . . . . Piercing . | . . . . . Highest Corruption . | . . . . . Average Corruption . | . . . . . Corruption Purged . | . . . . . Corruption Blocked . | . . . . . Overload Shots . | . . . . . Overflow Damage . | . . . . . Projectiles . | . . . . . Explosions . | . . . . . Melee . | . . . . . Knockbacks . | . . . . . Impact . | . . . . . Kinetic . | . . . . . Secondary . | . . . . . Self-Inflicted Damage 54 | . . . . 54 Shots 2 | . . . . 2 Rammed . | . . . . . Targets Rammed . | . . . . . Kicked . | . . . . . Crushed . | . . . . . Highest Temperature 235 | . 30 . . 235 Average Temperature 83 | . 19 . . 118 Received Heat Transfer 495 | . 36 . 36 423 Siege Activations . | . . . . . Robots Corrupted . | . . . . . Combat Hostiles . | . . . . . Parts Fried . | . . . . . Impact Corruptions . | . . . . . Robots Melted 1 | . . 1 . . Combat Hostiles 1 | . . 1 . . Parts Melted . | . . . . . Heat Transferred 407 | . . 222 185 . Parts Sabotaged . | . . . . . Parts Stolen . | . . . . . Parts Stripped . | . . . . . Power Chain Reactions . | . . . . . Alert | -11 -10 -10 -10 -8 ------- Run | Yrd Mat Min Sub Mat Peak Influence 169 | . 147 169 . 95 Initial 57 | . . 57 . 31 Average 93 | . 54 136 . 37 Maximum Alert Level . | . . . . . Low Security (%) 100 | . 100 100 . 100 Level 1 . | . . . . . Level 2 . | . . . . . Level 3 . | . . . . . Level 4 . | . . . . . Level 5 . | . . . . . High Security . | . . . . . Max Security . | . . . . . Squads Dispatched 1 | . . . . 1 Investigation . | . . . . . Extermination . | . . . . . Reinforcement 1 | . . . . 1 Assault . | . . . . . Garrison . | . . . . . Intercept . | . . . . . Searches Triggered . | . . . . . Construction Impeded 1 | . . . . 1 Haulers Reinforced . | . . . . . Active Scanning Responses . | . . . . . Cargo Convoy Interrupts . | . . . . . Stealth | -11 -10 -10 -10 -8 --------- Run | Yrd Mat Min Sub Mat Distress Signals . | . . . . . Communications Jammed . | . . . . . Distress Signals . | . . . . . Times Spotted 28 | . 6 11 5 6 Peak Tracking Total 8 | . 3 8 2 5 Tactical Retreats 1 | . . . 1 . Traps | -11 -10 -10 -10 -8 ------- Run | Yrd Mat Min Sub Mat Traps Triggered . | . . . . . Indirectly . | . . . . . Trap Hack Attempts . | . . . . . Triggered . | . . . . . Disarmed . | . . . . . Reprogrammed . | . . . . . Reused . | . . . . . Traps Extracted . | . . . . . Installed . | . . . . . Triggered . | . . . . . Machines | -11 -10 -10 -10 -8 ---------- Run | Yrd Mat Min Sub Mat Machines Disabled 2 | . . 1 . 1 Max in Single Turn 1 | . . 1 . 1 Machines Repaired . | . . . . . Machines Dismantled . | . . . . . Machines Sabotaged . | . . . . . Overloaded Fab Kills . | . . . . . Hacking | -11 -10 -10 -10 -8 --------- Run | Yrd Mat Min Sub Mat Machines Accessed 4 | . 4 . . . Terminals 4 | . 4 . . . Fabricators . | . . . . . Repair Stations . | . . . . . Recycling Units . | . . . . . Scanalyzers . | . . . . . Garrison Access . | . . . . . Total Hacks 9 | . 9 . . . Successful 8 | . 8 . . . Failed 1 | . 1 . . . Catastrophic 1 | . 1 . . . Database Lockouts . | . . . . . Manual 7 | . 7 . . . Terminals 9 | . 9 . . . Fabricators . | . . . . . Repair Stations . | . . . . . Recycling Units . | . . . . . Scanalyzers . | . . . . . Garrison Access . | . . . . . Terminal Hacks 4 | . 4 . . . Branch Access Points 1 | . 1 . . . Terminal Index 1 | . 1 . . . Locate Traps 1 | . 1 . . . Zone Layout 1 | . 1 . . . Fabricator Hacks . | . . . . . Repair Station Hacks . | . . . . . Recycling Unit Hacks . | . . . . . Scanalyzer . | . . . . . Garrison Access Hacks . | . . . . . Unauthorized Hacks 4 | . 4 . . . Terminals 4 | . 4 . . . Track 2 | . 2 . . . Botnet 2 | . 2 . . . Fabricators . | . . . . . Repair Stations . | . . . . . Recycling Units . | . . . . . Scanalyzers . | . . . . . Garrison Access . | . . . . . Data Cores Recovered . | . . . . . Used . | . . . . . Hacking Detections 3 | . 3 . . . Full Trace Events . | . . . . . Feedback Events . | . . . . . Feedback Blocked . | . . . . . Robot Schematics Acquired . | . . . . . Robots Built . | . . . . . Authchips . | . . . . . Time . | . . . . . Total Robot Build Rating . | . . . . . Part Schematics Acquired . | . . . . . Parts Built . | . . . . . Authchips . | . . . . . Time . | . . . . . Total Part Build Rating . | . . . . . Parts Repaired . | . . . . . Time . | . . . . . Parts Recycled . | . . . . . Recycled Matter . | . . . . . Retrieved Matter . | . . . . . Retrieved Components . | . . . . . Parts Scanalyzed . | . . . . . Part Schematics Acquired . | . . . . . Parts Damaged . | . . . . . Bothacking | -11 -10 -10 -10 -8 ------------ Run | Yrd Mat Min Sub Mat Used RIF Installer . | . . . . . Robots Hacked . | . . . . . Non-combat . | . . . . . Combat . | . . . . . Robot Hacks Applied . | . . . . . Relay Couplers Released . | . . . . . Fabnet Peak Effective % . | . . . . . Robots Rewired . | . . . . . Allies Hacked . | . . . . . Hacks Repelled . | . . . . . Allies | -11 -10 -10 -10 -8 -------- Run | Yrd Mat Min Sub Mat Total Allies 3 | . . 3 . . Largest Group 3 | . . 3 . . Highest-Rated Group 40 | . . 40 . . Highest-Rated Ally 16 | . . 16 . . Total Orders 3 | . . 3 . . AID 3 | . . 3 . . Ally Attacks 8 | . . 8 . . Total Damage 53 | . . 53 . . Kills . | . . . . . Allies Corrupted . | . . . . . Allies Melted . | . . . . . Intel | -11 -10 -10 -10 -8 ------- Run | Yrd Mat Min Sub Mat Robot Analysis Total . | . . . . . Derelict Logs Recovered 2 | . . 2 . . Drone Launches . | . . . . . Drone Recoveries . | . . . . . Exploration | -11 -10 -10 -10 -8 ------------- Run | Yrd Mat Min Sub Mat Turns Passed 979 | . 194 364 269 152 Spaces Moved 578 | 1 126 228 178 45 Core . | . . . . . Treads . | . . . . . Legs 488 | 1 126 216 106 39 Wheels 90 | . . 12 72 6 Hover . | . . . . . Flight . | . . . . . Fastest Speed 100 | 120 120 100 100 130 Average Speed 121 | 120 120 118 111 182 Slowest Speed 190 | 120 120 120 120 190 Overloaded Moves . | . . . . . Propulsion Burnouts . | . . . . . Robots Hopped . | . . . . . Cave-ins Triggered . | . . . . . Exploration Rate (%) 19 | 2 27 52 9 5 Regions Visited 4 Branch Regions 2 Pre-discovered Areas 2 | . . 1 1 . Known Exits Taken 2 | . 1 1 . . Unknown Exits Taken 2 | 1 . . 1 . Scrap Searched 1 | . . 1 . . Spaces Dug 2 | . . 2 . . Terrain Destroyed 34 | . . 2 . 32 Melee . | . . . . . Projectile 2 | . . 2 . . AOE 32 | . . . . 32 Terrain Rammed . | . . . . . Walls Destroyed . | . . . . . Machines Disabled . | . . . . . Actions | -11 -10 -10 -10 -8 --------- Run | Yrd Mat Min Sub Mat Total 751 | . 154 279 212 106 Wait 84 | . 7 28 1 48 Move 574 | . 125 227 177 45 Hop . | . . . . . Pick Up 16 | . 7 1 5 3 Fast Attach . | . . . . . Attach 6 | . 1 1 1 3 Detach . | . . . . . Swap 15 | . 2 4 7 2 Drop 9 | . 4 . 4 1 Fire 47 | . 8 18 17 4 Melee . | . . . . . Ram . | . . . . . Kick . | . . . . . Crush . | . . . . . Escape Stasis . | . . . . . Rewire . | . . . . . Trap . | . . . . . Miscellaneous . | . . . . . Route ------- -11/Scrapyard -10/Materials -10/Mines (discovered 2 exits: [*Mat] / *Sub) -10/Subcaves -8/Materials History --------- Turn | Location | Event 1 | -11/Scrapyard | Discovered new exit (range 0) 1 | -11/Scrapyard | Entered Materials 172 | -10/Materials | Identified exit to Mines 195 | -10/Materials | Entered Mines 251 | -10/Mines | Learned location of Mines (-8) 258 | -10/Mines | Identified exit to Subcaves 303 | -10/Mines | Discovered new exit (range 10) 316 | -10/Mines | Build established: Mutant 358 | -10/Mines | Assisted by bots powering up and referring to "LRC-V3" 498 | -10/Mines | Received a Rocket Launcher from a helpful Derelict 516 | -10/Mines | Assembled infested the area 521 | -10/Mines | Assisted by a Guerilla fighting off Assembled 559 | -10/Mines | Entered Subcaves 802 | -10/Subcaves | Discovered new exit (range 5) 809 | -10/Subcaves | Learned location of Zion (-6) 809 | -10/Subcaves | Met a Zionite searching for "candidates" 828 | -10/Subcaves | Entered Materials 828 | -8/Materials | Evolved 4 slots: Utility x3, Weapon x1 961 | -8/Materials | Core integrity fell below 50% 975 | -8/Materials | Core integrity fell below 20% 980 | -8/Materials | Destroyed by G-47 Trooper with Particle Gun Last Messages --------------- 00955_ U-05 Engineer builds a Wall. 00955_ Ion Engine destroyed. 00957_ M-13 Machinist repairs L-31 Rogue. 00959_ U-05 Engineer lays Concrete. 00961_ M-13 Machinist repairs Aluminum Leg. 00961_ U-05 Engineer lays Concrete. 00966_ M-13 Machinist repairs Particle Gun. 00967_ U-05 Engineer lays Concrete. 00970_ Critical hit (Burn: +37). 00970_ U-05 Engineer lays Concrete. 00970_ Critical hit (Burn: +37). 00971_ U-05 Engineer lays Concrete. 00973_ M-13 Machinist repairs Welding Torch. 00974_ U-05 Engineer lays Concrete. 00974_ U-05 Engineer builds a Wall. 00976_ U-05 Engineer lays Concrete. 00977_ M-13 Machinist repairs Lgt. Ion Engine. 00978_ U-05 Engineer lays Concrete. 00980_ M-13 Machinist repairs Wheel. 00980_ U-05 Engineer lays Concrete. Map ----- +----------------------------------------------------+ | ????????????????????? #????????????????????? | | ????????????????????? #????????????????????? | | ????????????????????? #????????????????????? | | ????????????????????? #????????????????????? | | ??????????????????### #????????????????????? | | ??????????######### #????????????????????? | | ??????????# # #????????????????????? | | ??????????# """ # #????????????????????? | | ??????????# """ + #????????????????????? | | ??????????# """ # #????????????????????? | | ??????????# % # #????????????????????? | | ??????????######### #????????????????????? | | ??????????????# #????????????????????? | | ??????????????# #????????????????????? | | ??????????????# #????????????????????? | | ??????????????##### #????????????????????? | | ??????????????????# #????????????????????? | | ???????????????#### #???"" #?????????????? | | ??????????????##! #??""" ??????????????? | | ??????????????#! #? ???????????????? | | ??????????????# # """???????????????? | | ??????????????# # """ ??????????????? | | ??????????????#! # """ ??????????????? | | ??????????????##! # ?????????????????? | | ??????????######## ##???????????????????? | | ?????????# @ ##???????????????????? | | ?????????# """ l g % ????????????? | | ?????????# """ g uu muT ??????????? | | ?????????# """ m ?????????? | | ?????????# ## ### ##= % ?????????? | | ???????????? """?? ???# ??????????? | | ???????????? """?? ####????? ??????????? | | ???????????? ""???##?????????? ??????????? | | ??????????????? ??????????????????????????? | | ???????????????????????????????????????????? | | ???????????????????????????????????????????? | | ???????????????????????????????????????????? | | ???????????????????????????????????????????? | | ???????????????????????????????????????????? | | ???????????????????????????????????????????? | | ???????????????????????????????????????????? | | ???????????????????????????????????????????? | | ???????????????????????????????????????????? | | ???????????????????????????????????????????? | | ???????????????????????????????????????????? | | ???????????????????????????????????????????? | | ???????????????????????????????????????????? | | ???????????????????????????????????????????? | | ???????????????????????????????????????????? | | ???????????????????????????????????????????? | +----------------------------------------------------+ Best States ------------- Heat Dissipation 35 Energy Generation 10 Energy Capacity 250 Matter Stores 300 Matter Capacity 300 Sight Range 21 Terrain Scan Density 10 Evasion (%) 55 Item Schematics ----------------- None Robot Schematics ------------------ None Fabricated ------------ Nothing Alien Tech Used ----------------- None Achievements -------------- None Challenges ------------ None Game ------ Seed SpacefoldMasterBay Manual? 0 Play Time 00:17:14 Cumulative 11.2 hours Start 2024.07.20 @ 12:42:43 End 2024.07.21 @ 13:49:18 Sessions 3 Manual Loads 0 Difficulty Rogue Special Mode None Game No. 18 Rogue 18 Adventurer 0 Explorer 0 Win Type - Total 0 Types 0/0/0/0/0/0/0/0/0 Lore% 8 Gallery% 13 Achievement% 14 Wizard Run 0 Options --------- Layout 0 ASCII 1 Keyboard 0 Movement Mouse Keybinds 0 Fullscreen 1 Font 18/TerminusBold Map View 76x50 Zoom Use 38% Tactical HUD 1 Map Filters NONE Filters NONE Steam 1 RUN: fdd93f96-d531-4006-bf94-8cd9d0babdfe